Cogmind - Beta 12 @@@ ROGUE MODE // 2023.04.21 @ 17:43:42 Player: maxwell Result: Destroyed by P-70 Sage with Tesla Rifle Performance ------------- Evolutions (5) 2500 Regions Visited (22) 4400 Robots Destroyed (186) 930 Value Destroyed (6667) 6667 Prototype IDs (29) 580 Alien Tech Used (1) 200 Bonus (2606) 2606 TOTAL SCORE: 17883 Bonus ------- High Alert Combat Kills 498 Follower Combat Kills 1206 Entered Garrisons 200 Met Data Miner 300 Met Imprinter 300 Was Imprinted 300 Met Warlord at Base 500 MAIN.C Attacked Warlord 500 Warlord Defense Kills 288 Friendly Fire -1486 Cogmind --------- Core Integrity 0/1000 Matter 300/300 Energy 99/100 System Corruption 11% Temperature Cool (0) Movement Core (50) Location -4/Proximity Caves Parts ------- > --- POWER (1) -------- (None) > --- PROPULSION (4) --- (None) > --- UTILITY (10) ----- (None) > --- WEAPON (3) ------- (None) > --- INVENTORY (5) ---- Vortex Chain Reactor Humpback Peak State ------------ > --- POWER ------------ Particle Reactor > --- PROPULSION ------- Wheel Wheel Wheel Compact Wheel > --- UTILITY ---------- Advanced Cooling System Cargo Storage Unit Energy Well Advanced Targeting Computer Experimental Core Analyzer Improved Light Armor Plating Makeshift Thermal Plating Point Defense Array Sensor Drone Bay > --- WEAPON ----------- Quantum Rifle Railgun Proton Missile Launcher > --- INVENTORY -------- Vortex Chain Reactor Wheel Advanced Cooling System Advanced Cooling System Humpback Matter Compressor Trap Scanner Experimental Core Analyzer Improved Medium Armor Plating Thermal Barrier Ghost Barrier Long-range Tractor Beam Long-range Tractor Beam Vortex Shotgun Vortex Shotgun Vortex Rail Vortex Rail Improved EM Pulse Cannon Heavy Plasma Cannon Flak Cannon Flak Cannon Shock Bomb Launcher Advanced EMP Blaster Heavy Missile Launcher Long-range Missile Launcher Improved Plasma Cutter Great Maul GAL Module [Rating: 95] Favorites ----------- Power Reinforced Deuterium Engine Engine Reinforced Deuterium Engine Power Core Hybrid Fission Core Reactor Particle Reactor Propulsion Wheel Treads Light Treads Leg Aluminum Leg Wheel Wheel Utility Advanced Targeting Computer Device Sensor Drone Bay Storage Humpback Processor Advanced Targeting Computer Hackware Hacking Suite Protection Improved Light Armor Plating Weapon Improved EM Pulse Cannon Energy Gun Heavy Particle Gun Energy Cannon Improved EM Pulse Cannon Ballistic Gun Assault Rifle Ballistic Cannon Advanced Assault Cannon Launcher Proton Missile Launcher Impact Weapon Great Maul Build | -11 -10 -10 -10 -9 -8 -8 -8 -7 -7 -7 -7 -6 -6 -6 -6 -6 -5 -5 -5 -5 -5 -4 ------- Run | Jun Mat Min Exi Min Mat Gar Mat Fac Low Low Dat Pro Fac Low Low Zio Pro Fac Upp Upp War Pro Slots Evolved 10 | . . . . . 4 . . 2 . . . . 2 . . . . 2 . . . . Power . | . . . . . . . . . . . . . . . . . . . . . . . Propulsion 2 | . . . . . 1 . . . . . . . 1 . . . . . . . . . Utility 7 | . . . . . 3 . . 2 . . . . 1 . . . . 1 . . . . Weapon 1 | . . . . . . . . . . . . . . . . . . 1 . . . . Parts Attached 283 | . 10 2 . 1 50 31 15 20 22 17 . 12 20 7 6 3 18 16 12 6 14 1 Power 12 | . 2 . . . 2 1 1 1 1 . . . . . . . 1 . . 1 2 . Engine 8 | . 2 . . . 2 1 1 1 1 . . . . . . . . . . . . . Core 1 | . . . . . . . . . . . . . . . . . . . . 1 . . Reactor 3 | . . . . . . . . . . . . . . . . . 1 . . . 2 . Propulsion 34 | . 2 . . . 7 7 2 3 . . . 1 4 . 1 . . 4 . . 3 . Treads 21 | . 2 . . . 7 7 2 . . . . . 2 . 1 . . . . . . . Leg . | . . . . . . . . . . . . . . . . . . . . . . . Wheel 13 | . . . . . . . . 3 . . . 1 2 . . . . 4 . . 3 . Hover . | . . . . . . . . . . . . . . . . . . . . . . . Flight . | . . . . . . . . . . . . . . . . . . . . . . . Utility 151 | . 4 2 . . 27 11 6 12 14 9 . 8 10 6 2 3 8 11 10 3 5 . Device 80 | . . 1 . . 16 6 2 7 12 4 . 5 6 3 1 2 2 4 5 1 3 . Storage 9 | . 1 . . . 1 . . 1 1 . . . . . . 1 2 1 1 . . . Processor 7 | . . . . . 1 . . 1 . . . . 1 1 . . 1 1 . . 1 . Hackware 2 | . 1 . . . 1 . . . . . . . . . . . . . . . . . Protection 53 | . 2 1 . . 8 5 4 3 1 5 . 3 3 2 1 . 3 5 4 2 1 . Artifact . | . . . . . . . . . . . . . . . . . . . . . . . Weapon 86 | . 2 . . 1 14 12 6 4 7 8 . 3 6 1 3 . 9 1 2 2 4 1 Energy Gun 19 | . . . . . 1 6 4 2 . . . . 1 . . . 1 . . 1 2 1 Energy Cannon 25 | . . . . . 6 . . 1 4 4 . . 3 . 1 . 5 . . 1 . . Ballistic Gun 7 | . 1 . . 1 2 . . . . . . . . . . . 1 . . . 2 . Ballistic Cannon 9 | . . . . . 2 2 2 . . 1 . 2 . . . . . . . . . . Launcher 17 | . 1 . . . 1 3 . . 2 2 . 1 . . 2 . 2 1 2 . . . Special Weapon . | . . . . . . . . . . . . . . . . . . . . . . . Impact Weapon 9 | . . . . . 2 1 . 1 1 1 . . 2 1 . . . . . . . . Slashing Weapon . | . . . . . . . . . . . . . . . . . . . . . . . Piercing Weapon . | . . . . . . . . . . . . . . . . . . . . . . . Special Melee Weapon . | . . . . . . . . . . . . . . . . . . . . . . . Unidentified Prototypes 9 | . 1 1 . . 2 . . . 1 . . . . 1 . . . . . . 2 1 Corrupted Parts 9 | . . . . . . 1 . . . . . . . . . . 3 . . . 5 . System Corruption 33 | . . . . . . 1 . . . . . . . . . . 10 . . . 22 . Parts Lost 54 | . 2 . . . 13 9 1 . . 4 . 1 3 . . . . 3 2 4 11 1 Power 4 | . 1 . . . 1 1 . . . . . . . . . . . . . 1 . . Propulsion 21 | . . . . . 4 5 1 . . 1 . 1 2 . . . . 2 . 1 4 . Utility 19 | . . . . . 7 2 . . . 2 . . . . . . . . 2 1 5 . Weapon 10 | . 1 . . . 1 1 . . . 1 . . 1 . . . . 1 . 1 2 1 Highest Loss Streak 13 | . 2 . . . 13 4 1 . . 3 . 1 2 . . . . 2 1 2 10 1 To Critical Strikes . | . . . . . . . . . . . . . . . . . . . . . . . Average Slot Usage (%) 91 | . 98 100 100 100 92 95 99 96 91 84 84 87 88 86 92 92 92 90 93 84 92 2 Engine 7 | . 13 14 14 14 9 9 8 7 7 7 7 7 6 6 6 6 5 . . . . . Treads 11 | . 7 28 28 28 24 26 26 13 . . . . 9 6 11 12 12 10 . . . . Leg 1 | . 20 . . . . . . . . . . . . . . . . . . . . . Wheel 10 | . . . . . . . . 9 23 15 15 18 14 12 12 12 12 11 22 17 21 . Device 14 | . . . . . 16 13 9 17 22 27 15 14 17 17 17 17 8 19 15 9 11 . Storage 9 | . 14 14 14 14 14 12 9 7 7 7 7 7 6 6 6 6 10 10 5 11 10 . Processor 8 | . . . . . 5 9 9 7 7 7 7 7 9 16 18 17 12 11 11 11 10 . Protection 9 | . 7 13 14 14 3 6 17 16 7 1 15 15 9 6 6 6 16 6 16 12 15 . Energy Gun 3 | . 14 14 14 . . 10 15 9 1 . . . 2 . . . . . . 3 . 2 Energy Cannon 6 | . . . . . 10 2 . 3 11 12 15 7 5 6 10 6 11 11 11 6 4 . Ballistic Gun 3 | . 13 14 14 27 4 . . . . . . . . . . . . . . . 4 . Ballistic Cannon 1 | . . . . . 1 1 2 . . 1 . 6 2 . . . . . . . . . Launcher 1 | . . . . . 1 3 . . 1 . . . . . 1 6 . 3 5 5 4 . Naked Turns 103 | . . . . . . . . . . . . . . . . . . . . . 2 101 Heaviest Build 280 | 11 54 65 54 55 78 98 96 173 255 255 252 256 259 259 259 259 265 280 237 236 213 9 Greatest Support 70 | 20 40 40 40 40 63 70 60 60 36 36 26 36 36 26 26 26 26 52 52 52 46 3 Greatest Overweight (x) 21 | . 2 1 1 1 1 2 1 8 7 9 9 12 12 9 9 9 10 21 4 5 14 2 Average Overweight (x) 5 | . . 1 1 1 . . . 2 5 8 9 8 9 9 9 9 9 9 4 4 4 . Largest Inventory Capacity 35 | . 20 20 20 20 20 20 20 30 35 35 35 35 35 35 35 35 35 35 30 30 30 5 Average Capacity 28 | . 16 20 20 20 20 20 20 21 34 35 35 35 35 35 35 35 35 34 30 30 29 5 Most Carried 35 | . 11 20 20 20 20 20 20 20 28 28 26 28 34 35 35 35 35 30 26 29 30 5 Average Carried 24 | . 8 13 20 19 16 19 19 18 26 27 26 27 29 34 34 34 34 28 25 26 28 4 Final Capacity 35 | 8 20 20 20 20 20 20 20 30 35 35 35 35 35 35 35 35 35 30 30 30 5 5 Final Carried 35 | 6 10 20 20 20 20 19 20 19 27 26 26 28 34 35 35 35 30 27 25 29 5 4 Class Distribution -------------------- 58% | Hauler-Mutant 31% | Mutant 10% | Scavenger-Mutant Dominant Class ---------------- Mutant | -10/Materials Mutant | -10/Mines Mutant | -10/Exiles Mutant | -9/Mines Mutant | -8/Materials Mutant | -8/Garrison Scavenger-Mutant | -8/Materials Scavenger-Mutant | -7/Factory Hauler-Mutant | -7/Lower Caves Hauler-Mutant | -7/Lower Caves Hauler-Mutant | -7/Data Miner Hauler-Mutant | -6/Proximity Caves Hauler-Mutant | -6/Factory Hauler-Mutant | -6/Lower Caves Hauler-Mutant | -6/Lower Caves Hauler-Mutant | -6/Zion Hauler-Mutant | -5/Proximity Caves Hauler-Mutant | -5/Factory Hauler-Mutant | -5/Upper Caves Hauler-Mutant | -5/Upper Caves Scavenger-Mutant | -5/Warlord Mutant | -4/Proximity Caves Resources | -11 -10 -10 -10 -9 -8 -8 -8 -7 -7 -7 -7 -6 -6 -6 -6 -6 -5 -5 -5 -5 -5 -4 ----------- Run | Jun Mat Min Exi Min Mat Gar Mat Fac Low Low Dat Pro Fac Low Low Zio Pro Fac Upp Upp War Pro Matter Collected 4663 | 200 264 32 . 46 703 564 159 404 245 250 . 189 301 224 95 . 252 230 250 80 165 10 Remotely 558 | . . . . . 494 64 . . . . . . . . . . . . . . . . Salvage Created 7256 | . 433 54 . 71 1173 883 368 416 232 410 . 47 256 110 57 . 610 887 512 366 323 48 Parts 319 | . 34 2 . 6 45 53 14 19 13 8 . 2 10 4 4 . 23 37 25 14 6 . Haulers Intercepted 3 | . . . . . 2 . . 1 . . . . . . . . . . . . . . Recyclers Shooed 6 | . . . . . 3 . . . . . . . 1 . . . . 2 . . . . Parts Field Recycled . | . . . . . . . . . . . . . . . . . . . . . . . Retrieved Matter . | . . . . . . . . . . . . . . . . . . . . . . . Parts Self-Destructed 66 | . . . . . . . . . 7 2 . 13 . 10 5 . 12 . 5 12 . . Prevented 76 | . . . . . . . . . 8 5 . . . . 5 . 25 . 17 16 . . Kills | -11 -10 -10 -10 -9 -8 -8 -8 -7 -7 -7 -7 -6 -6 -6 -6 -6 -5 -5 -5 -5 -5 -4 ------- Run | Jun Mat Min Exi Min Mat Gar Mat Fac Low Low Dat Pro Fac Low Low Zio Pro Fac Upp Upp War Pro Combat Hostiles Destroyed 147 | . 12 . . 2 19 38 8 6 6 9 . 2 2 1 2 . 9 9 14 5 2 1 Guns 44 | . 9 . . 2 5 17 5 2 . . . . 1 . . . . . . 1 1 1 Cannons 43 | . . . . . 10 2 3 4 1 3 . 2 1 1 . . 6 7 2 1 . . AOE 45 | . 3 . . . 2 17 . . 4 4 . . . . 2 . 2 . 10 1 . . Classes Destroyed 22 | . 5 1 . . 4 5 . 1 1 1 . . . 1 . . 1 1 . . . 1 Worker 7 | . 2 . . . 1 . 2 1 . . . . 1 . . . . . . . . . Builder 3 | . . . . . 1 . . 1 . . . . . . . . . 1 . . . . Tunneler 1 | . . . . . . . . 1 . . . . . . . . . . . . . . Hauler 3 | . . . . . 2 . . 1 . . . . . . . . . . . . . . Recycler 6 | . . 1 . . 1 . 1 . . . . . 1 . . . . 2 . . . . Minesweeper 1 | . . . . . . . . . 1 . . . . . . . . . . . . . Mechanic 1 | . . . . . . . . . . . . . . . . . . 1 . . . . Operator 2 | . 1 . . . 1 . . . . . . . . . . . . . . . . . Watcher 9 | . 2 . . . 1 . 1 . . . . . . . . . . 5 . . . . Swarmer 47 | . 3 . . . . 17 2 . 5 4 . 1 . . 2 . 1 3 9 . . . Cutter 2 | . . . . . . 2 . . . . . . . . . . . . . . . . Grunt 52 | . 9 . . 2 16 7 3 3 . 2 . . . 1 . . 4 . 2 3 . . Brawler 5 | . . . . . . 2 . . . . . . . . . . 2 . . . 1 . Duelist 3 | . . . . . . . . . . 1 . . . . . . 1 . . 1 . . Protector 1 | . . . . . . . . . . . . . . . . . 1 . . . . . Researcher 1 | . . . . . . . . . . . . . . 1 . . . . . . . . Sentry 15 | . . . . . 3 1 3 1 1 1 . . 1 . . . . 2 1 1 . . Specialist 2 | . . . . . . 2 . . . . . . . . . . . . . . . . Hunter 7 | . . . . . 1 2 . . . 1 . . . . . . . 1 2 . . . Programmer 13 | . . . . . . 4 . 2 . . . 1 1 . . . . 3 . . 1 1 Behemoth 1 | . . . . . . 1 . . . . . . . . . . . . . . . . Samaritan 1 | . . . . . . . . . . . . . . . . . . . . . . 1 Thug 3 | . . . . . . . . . . . . . . . . . . . . . 3 . Savage 1 | . . . . . . . . . . 1 . . . . . . . . . . . . Best Kill Streak 7 | . 7 1 . 2 4 5 6 3 3 5 . 1 1 1 2 . 4 6 5 3 1 1 Combat Bots Only 5 | . 3 . . 2 4 5 3 3 3 5 . 1 1 1 2 . 4 5 5 3 1 1 Max Kills in Single Turn 4 | . 3 1 . 1 2 4 1 1 3 1 . 1 1 1 1 . 1 1 2 1 2 1 Gunslinging . | . . . . . . . . . . . . . . . . . . . . . . . Exploded 4 | . 1 . . . 1 4 . . 3 1 . . . . 1 . 1 . 2 1 . . Melee . | . . . . . . . . . . . . . . . . . . . . . . . Uniques/NPCs Destroyed . | . . . . . . . . . . . . . . . . . . . . . . . Combat | -11 -10 -10 -10 -9 -8 -8 -8 -7 -7 -7 -7 -6 -6 -6 -6 -6 -5 -5 -5 -5 -5 -4 -------- Run | Jun Mat Min Exi Min Mat Gar Mat Fac Low Low Dat Pro Fac Low Low Zio Pro Fac Upp Upp War Pro Damage Taken 10831 | . 565 . . 54 1939 2004 386 602 129 675 . 110 277 97 31 . 346 1339 441 260 797 779 Core 1847 | . 170 . . 11 235 164 65 41 30 76 . 14 16 . . . 19 121 19 30 139 697 Absorbed by Shields 285 | . . . . . 144 . . . . . . . . . . . . . . . 141 . Redirected to Shielding 133 | . . . . . 50 . . 83 . . . . . . . . . . . . . . Regen/Repaired (Parts) 264 | . . . . . . . . . . . . . 102 . . . . . . . 162 . Core Remaining (%) 62 | 100 . . . 27 . . 15 . . . . 77 . . . . 95 . . . . . Volleys Fired 501 | . 46 . . 6 58 115 29 25 13 25 . 11 10 14 7 . 31 47 23 18 13 10 Largest 2 | . 2 . . 2 2 2 2 2 2 2 . 2 2 2 1 . 2 2 2 2 2 1 Hottest 188 | . 60 . . 40 138 110 110 120 138 138 . 113 120 155 39 . 155 188 188 134 163 60 Shots Fired 844 | . 82 . . 12 110 202 57 50 19 37 . 18 20 15 7 . 54 82 27 21 21 10 Gun 420 | . 74 . . 12 59 167 42 31 1 . . . 10 . . . . . . 3 11 10 Cannon 321 | . . . . . 45 10 15 19 11 29 . 14 10 15 . . 45 82 9 12 5 . Launcher 103 | . 8 . . . 6 25 . . 7 8 . 4 . . 7 . 9 . 18 6 5 . Special . | . . . . . . . . . . . . . . . . . . . . . . . Kinetic 158 | . 37 . . 12 68 10 15 . . 5 . 7 . . . . . . . . 4 . Thermal 487 | . 37 . . . . 167 42 50 2 4 . 7 20 15 . . 45 82 9 . 7 . Explosive 46 | . 8 . . . 6 25 . . . 4 . . . . . . . . 3 . . . Electromagnetic 143 | . . . . . 36 . . . 17 24 . 4 . . 7 . 9 . 15 21 10 . Entropic 10 | . . . . . . . . . . . . . . . . . . . . . . 10 Robot Hit Streak 17 | . 15 . . 4 13 17 11 9 14 7 . 5 15 17 9 . 14 6 9 11 15 11 Robot Miss Streak 5 | . 4 . . 4 3 2 3 2 1 2 . 2 . 2 . . 2 3 1 2 2 5 Penetration Max . | . . . . . . . . . . . . . . . . . . . . . . . Secondary Targets 7 | . 1 . . . 2 4 . . . . . . . . . . . . . . . . Max Gunslinging Chain 1 | . 1 . . . 1 1 . . . . . . . . . . . . . . . . Shots Hit Robots 567 | . 52 . . 6 81 138 45 37 13 25 . 10 15 12 2 . 37 49 10 13 14 8 Core Hits 362 | . 28 1 . 3 51 80 30 13 8 16 . 7 7 5 7 . 23 19 21 14 25 4 Critical Kills 1 | . . . . . . . . . . . . . . . . . . 1 . . . . Critical Parts Destroyed 1 | . . . . . 1 . . . . . . . . . . . . . . . . . Critical Strikes 8 | . . . . . 1 3 1 . . . . . 1 . . . . 1 . 1 . . Burn 5 | . . . . . . 3 1 . . . . . 1 . . . . . . . . . Meltdown 1 | . . . . . . . . . . . . . . . . . . 1 . . . . Destroy 1 | . . . . . 1 . . . . . . . . . . . . . . . . . Corrupt 1 | . . . . . . . . . . . . . . . . . . . . 1 . . Melee Attacks 35 | . . . . . 2 . . 1 26 . . . 5 1 . . . . . . . . Impact 35 | . . . . . 2 . . 1 26 . . . 5 1 . . . . . . . . Slashing . | . . . . . . . . . . . . . . . . . . . . . . . Piercing . | . . . . . . . . . . . . . . . . . . . . . . . Sneak Attacks . | . . . . . . . . . . . . . . . . . . . . . . . Combat Hostiles . | . . . . . . . . . . . . . . . . . . . . . . . Follow-up Attacks . | . . . . . . . . . . . . . . . . . . . . . . . Damage Inflicted 20068 | . 1010 6 . 89 2611 4539 1010 1038 568 1011 . 487 392 264 233 . 1525 1843 1321 746 837 538 Guns 6092 | . 570 . . 70 692 2630 649 509 19 . . . 150 . . . . . . 71 241 491 Cannons 7137 | . . . . . 1085 165 341 529 284 615 . 321 242 264 . . 916 1843 133 275 124 . Explosions 6708 | . 437 . . . 819 1744 . . 265 396 . 166 . . 233 . 609 . 1188 380 471 . Melee . | . . . . . . . . . . . . . . . . . . . . . . . Ramming 131 | . 3 6 . 19 15 . 20 . . . . . . . . . . . . 20 1 47 Kinetic 2004 | . 293 . . 70 814 165 341 . . 94 . 168 . . . . . . . . 59 . Thermal 9091 | . 277 . . . 342 2630 649 1038 147 79 . 153 392 264 . . 916 1843 133 46 182 . Explosive 3429 | . 437 . . . 477 1744 . . . 300 . . . . . . . . 471 . . . Electromagnetic 4922 | . . . . . 963 . . . 421 538 . 166 . . 233 . 609 . 717 680 595 . Impact . | . . . . . . . . . . . . . . . . . . . . . . . Slashing . | . . . . . . . . . . . . . . . . . . . . . . . Piercing . | . . . . . . . . . . . . . . . . . . . . . . . Entropic 491 | . . . . . . . . . . . . . . . . . . . . . . 491 Highest Corruption 22 | . . . . . . 6 6 . . . . 1 . . . . 10 4 4 . 22 11 Average Corruption 3 | . . . . . . 5 6 . . . . 1 . . . . 2 3 2 . 6 6 Corruption Purged 4 | . . . . . . . . . . . . . . . . . . . 4 . . . Corruption Blocked . | . . . . . . . . . . . . . . . . . . . . . . . Effects 97 | . . . . . . 42 16 . . . . 11 . . . . 16 8 . . 2 2 Message Errors 20 | . . . . . . 9 3 . . . . 3 . . . . 3 1 . . . 1 Matter Fused 29 | . . . . . . 11 3 . . . . 3 . . . . 7 4 . . 1 . Heat Flow Errors 10 | . . . . . . 2 2 . . . . 2 . . . . 1 2 . . 1 . Energy Discharges 11 | . . . . . . 3 3 . . . . 2 . . . . 2 . . . . 1 Parts Fused 2 | . . . . . . 1 . . . . . 1 . . . . . . . . . . Data Loss (minor) 12 | . . . . . . 8 1 . . . . . . . . . 2 1 . . . . Data Loss (major) 3 | . . . . . . 2 1 . . . . . . . . . . . . . . . Misfires 3 | . . . . . . 1 1 . . . . . . . . . 1 . . . . . Alerts 2 | . . . . . . 2 . . . . . . . . . . . . . . . . Weapon Failures 5 | . . . . . . 3 2 . . . . . . . . . . . . . . . Overload Shots . | . . . . . . . . . . . . . . . . . . . . . . . Overflow Damage 315 | . . . . . 55 39 . 68 . 17 . 34 . 1 . . 12 64 19 6 . . Projectiles 253 | . . . . . 55 . . 68 . . . 34 . 1 . . 12 64 19 . . . Explosions 56 | . . . . . . 39 . . . 17 . . . . . . . . . . . . Melee 6 | . . . . . . . . . . . . . . . . . . . . 6 . . Knockbacks 29 | . . . . . 9 10 8 . . 1 . . . . . . . . . . . 1 Impact 2 | . . . . . . . 1 . . . . . . . . . . . . . . 1 Kinetic 24 | . . . . . 8 9 6 . . 1 . . . . . . . . . . . . Secondary 3 | . . . . . 1 1 1 . . . . . . . . . . . . . . . Self-Inflicted Damage 412 | . 90 . . . 110 100 . . . 56 . . . . . . . . . 10 25 21 Shots 16 | . 4 . . . 3 4 . . . 3 . . . . . . . . . . 2 . Rammed 22 | . . 1 . 2 3 . . . . . . . . . . . . . . 1 1 14 Targets Rammed 27 | . 2 2 . 2 3 . 2 . . . . . . . . . . . . 1 1 14 Kicked 2 | . 2 . . . . . . . . . . . . . . . . . . . . . Crushed 3 | . . 1 . . . . 2 . . . . . . . . . . . . . . . Highest Temperature 368 | . 49 . . . 225 305 368 63 30 75 . 240 5 39 . . 261 278 90 . 52 . Average Temperature 83 | . 16 . . . 60 112 84 35 15 21 . 91 4 26 . . 86 95 50 . 52 . Received Heat Transfer 2562 | . 252 . . 30 781 201 180 234 12 213 . 9 42 27 . . 159 108 63 72 92 87 Effects 1 | . . . . . . . . . . . . . . . . . . 1 . . . . Interference 1 | . . . . . . . . . . . . . . . . . . 1 . . . . Siege Activations . | . . . . . . . . . . . . . . . . . . . . . . . Robots Corrupted 12 | . . . . . 2 . . . 1 3 . . . . . . 1 . 2 2 1 . Combat Hostiles 11 | . . . . . 2 . . . 1 2 . . . . . . 1 . 2 2 1 . Parts Fried 27 | . . . . . 6 . . . 4 5 . . . . 3 . 3 . 4 2 . . Impact Corruptions 1 | . . . . . . . . . . . . . . . . . . . . 1 . . Robots Melted 4 | . . . . . . 2 . . . . . . . . . . . 2 . . . . Combat Hostiles 3 | . . . . . . 2 . . . . . . . . . . . 1 . . . . Parts Melted 27 | . . . . . . 5 3 4 . . . 1 3 1 . . 1 9 . . . . Heat Transferred 13240 | . 600 . . . 400 3826 1295 1369 124 111 . 185 703 457 . . 1102 2650 200 50 168 . Parts Sabotaged 6 | . . . . . . . . . . . . . . . . . . . . . 6 . Parts Stolen . | . . . . . . . . . . . . . . . . . . . . . . . Parts Stripped . | . . . . . . . . . . . . . . . . . . . . . . . Power Chain Reactions 7 | . . . . . 4 . . . 1 . . . . . . . . . 1 1 . . Missiles Intercepted 1 | . . . . . . . . . . . . . . . . . . . . . 1 . Alert | -11 -10 -10 -10 -9 -8 -8 -8 -7 -7 -7 -7 -6 -6 -6 -6 -6 -5 -5 -5 -5 -5 -4 ------- Run | Jun Mat Min Exi Min Mat Gar Mat Fac Low Low Dat Pro Fac Low Low Zio Pro Fac Upp Upp War Pro Peak Influence 1490 | . 273 7 . 81 221 1490 771 335 . . . . 137 . . . . 303 . . . . Initial 726 | . . 7 . . . 59 726 299 . . . . . . . . . . . . . . Average 194 | . 133 2 . 12 59 739 667 127 . . . . 44 . . . . 55 . . . . Maximum Alert Level 4 | . 1 . . . 1 4 3 1 . . . . . . . . . 1 . . . . Low Security (%) 75 | . 82 100 . 100 99 10 . 75 . . . . 100 . . . . 88 . . . . Level 1 9 | . 17 . . . . 19 . 24 . . . . . . . . . 11 . . . . Level 2 6 | . . . . . . 20 62 . . . . . . . . . . . . . . . Level 3 4 | . . . . . . 14 37 . . . . . . . . . . . . . . . Level 4 5 | . . . . . . 34 . . . . . . . . . . . . . . . . Level 5 . | . . . . . . . . . . . . . . . . . . . . . . . High Security . | . . . . . . . . . . . . . . . . . . . . . . . Max Security . | . . . . . . . . . . . . . . . . . . . . . . . Squads Dispatched 17 | . 4 . . . 3 . 1 3 . . . . 1 . . . 1 3 . 1 . . Investigation 3 | . 2 . . . . . . 1 . . . . . . . . . . . . . . Extermination 5 | . . . . . . . . 2 . . . . 1 . . . . 2 . . . . Reinforcement 7 | . 2 . . . 3 . 1 . . . . . . . . . . 1 . . . . Assault 2 | . . . . . . . . . . . . . . . . . 1 . . 1 . . Garrison . | . . . . . . . . . . . . . . . . . . . . . . . Intercept . | . . . . . . . . . . . . . . . . . . . . . . . Searches Triggered . | . . . . . . . . . . . . . . . . . . . . . . . Construction Impeded . | . . . . . . . . . . . . . . . . . . . . . . . Haulers Reinforced . | . . . . . . . . . . . . . . . . . . . . . . . Active Scanning Responses . | . . . . . . . . . . . . . . . . . . . . . . . Cargo Convoy Interrupts . | . . . . . . . . . . . . . . . . . . . . . . . Stealth | -11 -10 -10 -10 -9 -8 -8 -8 -7 -7 -7 -7 -6 -6 -6 -6 -6 -5 -5 -5 -5 -5 -4 --------- Run | Jun Mat Min Exi Min Mat Gar Mat Fac Low Low Dat Pro Fac Low Low Zio Pro Fac Upp Upp War Pro Distress Signals 6 | . 2 . . . 2 . 2 . . . . . . . . . . . . . . . Communications Jammed 35 | . . . . . . . . . . . . . . . . . 30 5 . . . . Distress Signals 35 | . . . . . . . . . . . . . . . . . 30 5 . . . . Times Spotted 278 | . 20 . . 3 34 52 16 7 4 10 . 6 9 4 5 . 20 22 14 12 34 6 Peak Tracking Total 12 | . 4 . . 1 7 7 3 3 3 5 . 3 3 4 3 . 5 8 4 8 12 5 Tactical Retreats 28 | . . . . . 3 14 . . . 1 . . . . 1 . 5 2 . 1 . 1 Traps | -11 -10 -10 -10 -9 -8 -8 -8 -7 -7 -7 -7 -6 -6 -6 -6 -6 -5 -5 -5 -5 -5 -4 ------- Run | Jun Mat Min Exi Min Mat Gar Mat Fac Low Low Dat Pro Fac Low Low Zio Pro Fac Upp Upp War Pro Traps Triggered 9 | . 1 . . . 3 3 1 . . . . . 1 . . . . . . . . . Indirectly . | . . . . . . . . . . . . . . . . . . . . . . . Trap Hack Attempts . | . . . . . . . . . . . . . . . . . . . . . . . Triggered . | . . . . . . . . . . . . . . . . . . . . . . . Disarmed . | . . . . . . . . . . . . . . . . . . . . . . . Reprogrammed . | . . . . . . . . . . . . . . . . . . . . . . . Reused . | . . . . . . . . . . . . . . . . . . . . . . . Traps Extracted . | . . . . . . . . . . . . . . . . . . . . . . . Installed . | . . . . . . . . . . . . . . . . . . . . . . . Triggered 14 | . . . . . . . . . 1 . . . . . . . . . . . 12 1 Machines | -11 -10 -10 -10 -9 -8 -8 -8 -7 -7 -7 -7 -6 -6 -6 -6 -6 -5 -5 -5 -5 -5 -4 ---------- Run | Jun Mat Min Exi Min Mat Gar Mat Fac Low Low Dat Pro Fac Low Low Zio Pro Fac Upp Upp War Pro Machines Disabled 13 | . . . . . 2 3 . 1 . . . . 5 . . . . 2 . . . . Max in Single Turn 2 | . . . . . 1 2 . 1 . . . . . . . . . 2 . . . . Garrison Access 1 | . . . . . . . . . . . . . 1 . . . . . . . . . Phase Generator 1 | . . . . . . 1 . . . . . . . . . . . . . . . . Machines Repaired . | . . . . . . . . . . . . . . . . . . . . . . . Machines Sabotaged . | . . . . . . . . . . . . . . . . . . . . . . . Overloaded Fab Kills . | . . . . . . . . . . . . . . . . . . . . . . . Hacking | -11 -10 -10 -10 -9 -8 -8 -8 -7 -7 -7 -7 -6 -6 -6 -6 -6 -5 -5 -5 -5 -5 -4 --------- Run | Jun Mat Min Exi Min Mat Gar Mat Fac Low Low Dat Pro Fac Low Low Zio Pro Fac Upp Upp War Pro Machines Accessed 32 | . 6 1 1 . 3 . 1 2 2 1 4 . 2 . . 1 . . . . 8 . Terminals 11 | . 5 . . . 2 . 1 1 1 . . . 1 . . . . . . . . . Fabricators 1 | . . . . . . . . 1 . . . . . . . . . . . . . . Repair Stations . | . . . . . . . . . . . . . . . . . . . . . . . Recycling Units 1 | . 1 . . . . . . . . . . . . . . . . . . . . . Scanalyzers . | . . . . . . . . . . . . . . . . . . . . . . . Garrison Access 2 | . . . . . 1 . . . . . . . 1 . . . . . . . . . Total Hacks 94 | . 17 1 1 . 7 . 3 9 2 1 31 . 6 . . 2 . . . . 14 . Successful 71 | . 6 1 1 . 4 . 1 7 2 1 31 . 1 . . 2 . . . . 14 . Failed 21 | . 10 . . . 2 . 2 2 . . . . 5 . . . . . . . . . Catastrophic 4 | . 2 . . . . . . . . . . . 2 . . . . . . . . . Database Lockouts 2 | . 1 . . . 1 . . . . . . . . . . . . . . . . . Manual 38 | . 15 . . . 6 . 3 5 . . . . 1 . . . . 3 . . 5 . Terminals 34 | . 16 . . . 6 . 3 7 1 . . . 1 . . . . . . . . . Fabricators 2 | . . . . . . . . 2 . . . . . . . . . . . . . . Repair Stations . | . . . . . . . . . . . . . . . . . . . . . . . Recycling Units 1 | . 1 . . . . . . . . . . . . . . . . . . . . . Scanalyzers . | . . . . . . . . . . . . . . . . . . . . . . . Garrison Access 6 | . . . . . 1 . . . . . . . 5 . . . . . . . . . Terminal Hacks 61 | . 3 1 1 . 2 . 1 3 2 1 31 . . . . 2 . . . . 14 . Record 20 | . . . 1 . . . . . 1 . 11 . . . . . . . . . 7 . Part Schematic 14 | . . . . . . . . 1 . . 11 . . . . 2 . . . . . . Robot Schematic 6 | . . . . . . . . . . . 6 . . . . . . . . . . . Robot Analysis 4 | . 3 . . . 1 . . . . . . . . . . . . . . . . . Prototype ID Bank 10 | . . . . . . . . 1 . . 3 . . . . . . . . . 6 . Open Door 4 | . . 1 . . . . . . 1 1 . . . . . . . . . . 1 . Unreport Threat 2 | . . . . . 1 . 1 . . . . . . . . . . . . . . . Locate Traps 1 | . . . . . . . . 1 . . . . . . . . . . . . . . Fabricator Hacks 2 | . . . . . . . . 2 . . . . . . . . . . . . . . Load Schematic 1 | . . . . . . . . 1 . . . . . . . . . . . . . . Build 1 | . . . . . . . . 1 . . . . . . . . . . . . . . Repair Station Hacks . | . . . . . . . . . . . . . . . . . . . . . . . Recycling Unit Hacks . | . . . . . . . . . . . . . . . . . . . . . . . Scanalyzer . | . . . . . . . . . . . . . . . . . . . . . . . Garrison Access Hacks 2 | . . . . . 1 . . . . . . . 1 . . . . . . . . . Unlock Access 1 | . . . . . 1 . . . . . . . . . . . . . . . . . Seal Access 1 | . . . . . . . . . . . . . 1 . . . . . . . . . Unauthorized Hacks 6 | . 3 . . . 1 . . 2 . . . . . . . . . . . . . . Terminals 5 | . 2 . . . 1 . . 2 . . . . . . . . . . . . . . Track 1 | . 1 . . . . . . . . . . . . . . . . . . . . . Assimilate 1 | . . . . . . . . 1 . . . . . . . . . . . . . . Botnet 1 | . . . . . 1 . . . . . . . . . . . . . . . . . Disrupt 1 | . 1 . . . . . . . . . . . . . . . . . . . . . Operators 1 | . . . . . . . . 1 . . . . . . . . . . . . . . Fabricators . | . . . . . . . . . . . . . . . . . . . . . . . Repair Stations . | . . . . . . . . . . . . . . . . . . . . . . . Recycling Units 1 | . 1 . . . . . . . . . . . . . . . . . . . . . Tunnel 1 | . 1 . . . . . . . . . . . . . . . . . . . . . Scanalyzers . | . . . . . . . . . . . . . . . . . . . . . . . Garrison Access . | . . . . . . . . . . . . . . . . . . . . . . . Data Cores Recovered 1 | . 1 . . . . . . . . . . . . . . . . . . . . . Used . | . . . . . . . . . . . . . . . . . . . . . . . Hacking Detections 10 | . 4 . . . 1 . 1 2 1 . . . 1 . . . . . . . . . Full Trace Events 2 | . 1 . . . . . . 1 . . . . . . . . . . . . . . Feedback Events . | . . . . . . . . . . . . . . . . . . . . . . . Feedback Blocked . | . . . . . . . . . . . . . . . . . . . . . . . Robot Schematics Acquired 6 | . . . . . . . . . . . 6 . . . . . . . . . . . Robots Built . | . . . . . . . . . . . . . . . . . . . . . . . Authchips . | . . . . . . . . . . . . . . . . . . . . . . . Time . | . . . . . . . . . . . . . . . . . . . . . . . Total Robot Build Rating . | . . . . . . . . . . . . . . . . . . . . . . . Part Schematics Acquired 14 | . . . . . . . . 1 . . 11 . . . . 2 . . . . . . Parts Built 1 | . . . . . . . . 1 . . . . . . . . . . . . . . Authchips . | . . . . . . . . . . . . . . . . . . . . . . . Time 51 | . . . . . . . . 51 . . . . . . . . . . . . . . Total Part Build Rating 1 | . . . . . . . . 1 . . . . . . . . . . . . . . Parts Repaired . | . . . . . . . . . . . . . . . . . . . . . . . Time . | . . . . . . . . . . . . . . . . . . . . . . . Parts Recycled . | . . . . . . . . . . . . . . . . . . . . . . . Recycled Matter . | . . . . . . . . . . . . . . . . . . . . . . . Retrieved Matter . | . . . . . . . . . . . . . . . . . . . . . . . Retrieved Components . | . . . . . . . . . . . . . . . . . . . . . . . Parts Scanalyzed . | . . . . . . . . . . . . . . . . . . . . . . . Part Schematics Acquired . | . . . . . . . . . . . . . . . . . . . . . . . Parts Damaged . | . . . . . . . . . . . . . . . . . . . . . . . Bothacking | -11 -10 -10 -10 -9 -8 -8 -8 -7 -7 -7 -7 -6 -6 -6 -6 -6 -5 -5 -5 -5 -5 -4 ------------ Run | Jun Mat Min Exi Min Mat Gar Mat Fac Low Low Dat Pro Fac Low Low Zio Pro Fac Upp Upp War Pro Used RIF Installer . | . . . . . . . . . . . . . . . . . . . . . . . Robots Hacked . | . . . . . . . . . . . . . . . . . . . . . . . Non-combat . | . . . . . . . . . . . . . . . . . . . . . . . Combat . | . . . . . . . . . . . . . . . . . . . . . . . Robot Hacks Applied . | . . . . . . . . . . . . . . . . . . . . . . . Relay Couplers Released 3 | . . . . . . 3 . . . . . . . . . . . . . . . . Programmers 3 | . . . . . . 3 . . . . . . . . . . . . . . . . Fabnet Peak Effective % . | . . . . . . . . . . . . . . . . . . . . . . . Robots Rewired 9 | . . . . . . . . . . . . . . . . . 2 . . 2 5 . Allies Hacked 1 | . . . . . . . . . . . . . . . . . . . . . 1 . Hacks Repelled . | . . . . . . . . . . . . . . . . . . . . . . . Allies | -11 -10 -10 -10 -9 -8 -8 -8 -7 -7 -7 -7 -6 -6 -6 -6 -6 -5 -5 -5 -5 -5 -4 -------- Run | Jun Mat Min Exi Min Mat Gar Mat Fac Low Low Dat Pro Fac Low Low Zio Pro Fac Upp Upp War Pro Total Allies 19 | . . . . 3 . . . . . . . 1 . . . 6 2 . . 2 5 . Largest Group 7 | . . . . 3 3 . . . . . . 1 1 1 1 7 6 . . 2 7 . Highest-Rated Group 306 | . . . . 40 40 . . . . . . 96 96 96 96 306 269 . . 58 293 . Highest-Rated Ally 96 | . . . . 16 16 . . . . . . 96 96 96 96 96 96 . . 29 65 . Warlord Squad Rendezvous 1 | . . . . . . . . . . . . . 1 . . . . . . . . . Muscle 1 | . . . . . . . . . . . . . 1 . . . . . . . . . Total Orders 30 | . . . . . . . 1 3 8 1 . . . . . . . . 4 1 12 . STAY 13 | . . . . . . . . 1 3 . . . . . . . . . 2 . 7 . FOLLOW 9 | . . . . . . . . . 3 . . . . . . . . . 2 . 4 . RETURN 8 | . . . . . . . 1 2 2 1 . . . . . . . . . 1 1 . Ally Attacks 188 | . . . . 10 25 . . . . . . 10 23 4 8 . 49 . . . 59 . Total Damage 6179 | . . . . 101 304 . . . . . . 442 1101 141 275 . 2180 . . . 1635 . Kills 41 | . . . . 1 5 . . . . . . 7 7 3 4 . 7 . . . 7 . Allies Corrupted 1 | . . . . . . . . . . . . . . . . . 1 . . . . . Allies Melted . | . . . . . . . . . . . . . . . . . . . . . . . Intel | -11 -10 -10 -10 -9 -8 -8 -8 -7 -7 -7 -7 -6 -6 -6 -6 -6 -5 -5 -5 -5 -5 -4 ------- Run | Jun Mat Min Exi Min Mat Gar Mat Fac Low Low Dat Pro Fac Low Low Zio Pro Fac Upp Upp War Pro Robot Analysis Total 4 | . 3 . . . 1 . . . . . . . . . . . . . . . . . Derelict Logs Recovered 15 | . . 1 . 1 . . . . 1 2 . 2 . 1 1 3 1 . 1 1 . . Drone Launches 32 | . . . . . 2 . 1 3 4 4 . . 1 1 1 . 1 2 2 10 . . Drone Recoveries 26 | . . . . . . 1 1 3 3 4 . . . 1 2 . . . 1 9 1 . Exploration | -11 -10 -10 -10 -9 -8 -8 -8 -7 -7 -7 -7 -6 -6 -6 -6 -6 -5 -5 -5 -5 -5 -4 ------------- Run | Jun Mat Min Exi Min Mat Gar Mat Fac Low Low Dat Pro Fac Low Low Zio Pro Fac Upp Upp War Pro Turns Passed 27016 | . 1328 1395 374 1340 1881 1840 608 1648 2041 2222 180 2136 993 742 697 2456 1267 1363 599 686 1029 191 Spaces Moved 11799 | 1 580 566 156 542 668 659 194 820 1063 944 81 993 384 309 296 1086 492 483 331 370 574 207 Core 211 | . . . . . . . . . . . . . . . . . . . . . 4 207 Treads 3224 | . 135 566 156 542 668 659 194 298 . . . . . . . . . 6 . . . . Legs 446 | 1 445 . . . . . . . . . . . . . . . . . . . . . Wheels 7918 | . . . . . . . . 522 1063 944 81 993 384 309 296 1086 492 477 331 370 570 . Hover . | . . . . . . . . . . . . . . . . . . . . . . . Flight . | . . . . . . . . . . . . . . . . . . . . . . . Fastest Speed 50 | 120 120 240 240 240 160 163 160 120 146 176 225 176 176 225 225 225 225 150 150 135 50 50 Average Speed 205 | 120 199 240 240 240 231 214 241 177 174 224 225 207 230 225 225 225 227 234 150 156 145 71 Slowest Speed 485 | 120 260 240 240 240 240 320 243 240 191 225 225 260 260 225 225 225 240 485 150 161 290 150 Overloaded Moves . | . . . . . . . . . . . . . . . . . . . . . . . Propulsion Burnouts . | . . . . . . . . . . . . . . . . . . . . . . . Robots Hopped . | . . . . . . . . . . . . . . . . . . . . . . . Cave-ins Triggered . | . . . . . . . . . . . . . . . . . . . . . . . Exploration Rate (%) 59 | 3 94 96 53 84 62 67 26 19 96 93 69 92 12 56 42 89 73 20 52 51 70 41 Regions Visited 22 Branch Regions 15 Pre-discovered Areas 6 | . 1 . 1 . . . . . 1 . 1 1 . . . 1 . . . . . . Known Exits Taken 11 | . . . . . 1 . 1 1 1 1 . 1 1 1 1 . . 1 1 . . . Unknown Exits Taken 10 | 1 1 1 1 1 . . . . . . 1 . . . . 1 1 . . 1 1 . Scrap Searched 31 | . . 1 . 2 . . . . 12 3 . 1 . 3 1 2 2 . 2 1 . 1 Spaces Dug 90 | . 5 . . . 2 4 . 1 25 . . . 5 1 . . . 6 41 . . . Terrain Destroyed 370 | . 45 . . . 53 127 . 3 31 20 . . 6 2 . . 10 24 43 1 1 4 Melee 34 | . . . . . 2 . . 1 25 . . . 5 1 . . . . . . . . Projectile 50 | . . . . . . 1 . 2 . 2 . . 1 1 . . 10 24 4 . 1 4 AOE 286 | . 45 . . . 51 126 . . 6 18 . . . . . . . . 39 1 . . Terrain Rammed . | . . . . . . . . . . . . . . . . . . . . . . . Walls Destroyed . | . . . . . . . . . . . . . . . . . . . . . . . Machines Disabled . | . . . . . . . . . . . . . . . . . . . . . . . Actions | -11 -10 -10 -10 -9 -8 -8 -8 -7 -7 -7 -7 -6 -6 -6 -6 -6 -5 -5 -5 -5 -5 -4 --------- Run | Jun Mat Min Exi Min Mat Gar Mat Fac Low Low Dat Pro Fac Low Low Zio Pro Fac Upp Upp War Pro Total 13555 | . 669 600 157 571 874 881 271 965 1171 1007 80 1047 457 339 317 1101 585 631 399 452 742 239 Wait 541 | . 14 21 2 5 48 61 21 74 37 19 . 28 29 3 8 . 11 69 31 11 42 7 Move 11773 | . 579 565 155 541 668 652 193 819 1062 943 80 992 383 308 295 1085 491 482 330 369 574 207 Hop . | . . . . . . . . . . . . . . . . . . . . . . . Pick Up 136 | . 10 10 . 8 26 13 6 8 7 2 . 2 8 3 1 6 3 5 2 7 9 . Fast Attach 48 | . 3 . . . 9 5 4 5 . 1 . 1 3 2 . 2 5 6 . 1 1 . Attach 78 | . 5 . . 1 16 9 3 6 5 3 . 2 4 1 1 1 5 5 4 3 3 1 Detach 25 | . 2 . . . 3 . 1 4 3 . . 2 2 . . . 3 4 . . 1 . Swap 159 | . 2 2 . . 25 17 8 9 17 13 . 9 13 5 5 1 8 5 8 2 10 . Drop 89 | . 6 . . 8 16 5 4 14 1 1 . . . 2 . 6 10 8 1 . 7 . Fire 501 | . 46 . . 6 58 115 29 25 13 25 . 11 10 14 7 . 31 47 23 18 13 10 Melee 35 | . . . . . 2 . . 1 26 . . . 5 1 . . . . . . . . Ram 15 | . . . . . . . . . . . . . . . . . . . . 1 . 14 Kick 2 | . 2 . . . . . . . . . . . . . . . . . . . . . Crush 9 | . . 2 . 2 3 . 2 . . . . . . . . . . . . . . . Escape Stasis 4 | . . . . . . 4 . . . . . . . . . . . . . . . . Rewire 140 | . . . . . . . . . . . . . . . . . 18 . . 40 82 . Trap . | . . . . . . . . . . . . . . . . . . . . . . . Miscellaneous . | . . . . . . . . . . . . . . . . . . . . . . . Route ------- -11/Junkyard -10/Materials (discovered 5 exits: [*Mat x3] / *Min x2) -10/Mines (discovered 3 exits: [*Mat x2] / *Exi) -10/Exiles (discovered 2 exits: [*Min x2]) -9/Mines -8/Materials (discovered 2 exits: *Fac / Gar) -8/Garrison (discovered 3 exits: *Mat x3) -8/Materials -7/Factory -7/Lower Caves (discovered 2 exits: *Low / *Zio) -7/Lower Caves (discovered 2 exits: *Fac / *Dat) -7/Data Miner -6/Proximity Caves -6/Factory -6/Lower Caves -6/Lower Caves -6/Zion -5/Proximity Caves -5/Factory (discovered 2 exits: *Upp / Ext) -5/Upper Caves -5/Upper Caves -5/Warlord -4/Proximity Caves (discovered 1 exit: Fac) History --------- Turn | Location | Event 1 | -11/Junkyard | Discovered new exit (range 0) 1 | -11/Junkyard | Entered Materials 146 | -10/Materials | Discovered new exit (range 14) 287 | -10/Materials | Central database locked down 318 | -10/Materials | Build established: Mutant 351 | -10/Materials | Discovered new exit (range 12) 519 | -10/Materials | Core integrity fell below 50% 552 | -10/Materials | Discovered new exit (range 9) 754 | -10/Materials | Discovered new exit (range 15) 886 | -10/Materials | Discovered new exit (range 10) 1329 | -10/Materials | Entered Mines 1330 | -10/Mines | Assembled infested the area 1363 | -10/Mines | Met 8R-AWN 1584 | -10/Mines | Discovered new exit (range 10) 1866 | -10/Mines | Found the Drone Emporium 1877 | -10/Mines | Found Prototype Device 1907 | -10/Mines | Learned Materials emergency access door positions 1909 | -10/Mines | Identified Sensor Drone Bay 2051 | -10/Mines | Received a Rocket Launcher from a helpful Derelict 2285 | -10/Mines | Joined a pair of Derelicts in attacking an 0b10 outpost 2489 | -10/Mines | Discovered new exit (range 10) 2715 | -10/Mines | Discovered new exit (range 5) 2724 | -10/Mines | Entered Exiles 2760 | -10/Exiles | Discovered new exit (range 15) 2789 | -10/Exiles | Welcomed by 8R-AWN 2839 | -10/Exiles | Learned about 8R-AWN's background 2839 | -10/Exiles | Met EX-HEX 2952 | -10/Exiles | Met EX-DEC 2990 | -10/Exiles | Learned location of Zion (-6) 3070 | -10/Exiles | Discovered new exit (range 11) 3098 | -10/Exiles | Entered Mines 3152 | -9/Mines | Met a Derelict bent on vengeance 3366 | -9/Mines | Learned Materials garrison access intel 3460 | -9/Mines | Assisted by bots powering up and referring to "LRC-V3" 4104 | -9/Mines | Discovered new exit (range 8) 4438 | -9/Mines | Entered Materials 4438 | -8/Materials | Accompanied by 3 allies 4438 | -8/Materials | Evolved 4 slots: Propulsion x1, Utility x3 4440 | -8/Materials | Loaded intel: 1 garrison access location 4894 | -8/Materials | Lost 13 parts (1p4n7u1w) 4932 | -8/Materials | Central database locked down 5869 | -8/Materials | Build established: Scavenger-Mutant 6037 | -8/Materials | Discovered new exit (range 16) 6146 | -8/Materials | Identified exit to Factory 6319 | -8/Materials | Identified exit to Garrison 6319 | -8/Materials | Entered Garrison 6319 | -8/Garrison | Accompanied by 1 ally 6374 | -8/Garrison | Triggered checkpoint 6502 | -8/Garrison | Triggered checkpoint 6510 | -8/Garrison | Build established: Mutant 6618 | -8/Garrison | Discovered new exit (range 10) 6640 | -8/Garrison | Attempted to access garrison exit controls, blocked by remote lockdown 6648 | -8/Garrison | Identified exit to Materials 6765 | -8/Garrison | Triggered checkpoint 6833 | -8/Garrison | Spotted B-75 Beast 6917 | -8/Garrison | Lost 4 parts (2n1u1w) 6968 | -8/Garrison | Core integrity fell below 50% 6972 | -8/Garrison | Destroyed B-75 Beast 6992 | -8/Garrison | Lost 3 parts (1p1n1u) 7135 | -8/Garrison | Discovered exit to Materials (range 10) 7150 | -8/Garrison | Attempted to access garrison exit controls, blocked by remote lockdown 7197 | -8/Garrison | Triggered checkpoint 7247 | -8/Garrison | Phase Generator disabled 8011 | -8/Garrison | Triggered checkpoint 8127 | -8/Garrison | Discovered exit to Materials (range 14) 8159 | -8/Garrison | Entered Materials 8453 | -8/Materials | Core integrity fell below 20% 8731 | -8/Materials | Build established: Scavenger-Mutant 8731 | -8/Materials | Discovered exit to Factory (range 13) 8767 | -8/Materials | Entered Factory 8767 | -7/Factory | Evolved 2 slots: Utility x2 9380 | -7/Factory | Discovered new exit (range 15) 9457 | -7/Factory | Identified exit to Lower Caves 9881 | -7/Factory | Build established: Mutant 10087 | -7/Factory | Fabricated Cargo Storage Unit (x1) 10413 | -7/Factory | Build established: Hauler-Mutant 10415 | -7/Factory | Entered Lower Caves 10506 | -7/Lower Caves | Met a Warlord Commander 10507 | -7/Lower Caves | Learned location of Warlord (-5) 10508 | -7/Lower Caves | Found Encrypted Comm Array 10906 | -7/Lower Caves | A Derelict revealed a hidden shortcut to a safe place 10914 | -7/Lower Caves | Identified exit to Zion 11102 | -7/Lower Caves | Attracted the attention of an 0b10 checkpoint 11444 | -7/Lower Caves | Discovered new exit (range 13) 11470 | -7/Lower Caves | Identified exit to Lower Caves 11790 | -7/Lower Caves | Learned Factory terminal intel 12456 | -7/Lower Caves | Entered another Lower Caves area 12456 | -7/Lower Caves | Accompanied by 1 ally 12472 | -7/Lower Caves | Discovered new exit (range 14) 12990 | -7/Lower Caves | Identified exit to Factory 13607 | -7/Lower Caves | Discovered new exit (range 8) 13637 | -7/Lower Caves | Identified exit to Data Miner 14381 | -7/Lower Caves | Learned Factory garrison access intel 14507 | -7/Lower Caves | Attracted the attention of an 0b10 checkpoint 14558 | -7/Lower Caves | Lost 3 parts (2u1w) 14581 | -7/Lower Caves | Learned 4 Factory zone layouts 14678 | -7/Lower Caves | Entered Data Miner 14678 | -7/Data Miner | Accompanied by 1 ally 14678 | -7/Data Miner | Discovered new exit (range 6) 14721 | -7/Data Miner | Met Data Miner 14762 | -7/Data Miner | Learned location of Section 7 (-2) 14762 | -7/Data Miner | Acquired the access code to Warlord's prototype stash 14795 | -7/Data Miner | Received God Mode back door access code from Data Miner 14858 | -7/Data Miner | Entered Proximity Caves 14858 | -6/Proximity Caves | Accompanied by 1 ally 14907 | -6/Proximity Caves | Escorted by Enhanced Grunt 15598 | -6/Proximity Caves | Learned Factory garrison access intel 15766 | -6/Proximity Caves | Discovered exit to Factory (range 5) 16994 | -6/Proximity Caves | Entered Factory 16994 | -6/Factory | Accompanied by 2 allies 16994 | -6/Factory | Evolved 2 slots: Propulsion x1, Utility x1 16996 | -6/Factory | Loaded intel: 26 terminal locations 16997 | -6/Factory | Loaded intel: 4 garrison access locations 17891 | -6/Factory | Discovered new exit (range 14) 17924 | -6/Factory | Joined by Warlord Muscle squad 17986 | -6/Factory | Identified exit to Lower Caves 17987 | -6/Factory | Entered Lower Caves 17987 | -6/Lower Caves | Accompanied by 2 allies 18087 | -6/Lower Caves | Found Alien Artifact 18087 | -6/Lower Caves | Identified Core Expander 18087 | -6/Lower Caves | Installed Core Expander, added new Utility slot 18655 | -6/Lower Caves | Learned location of 1 exit from Factory 18684 | -6/Lower Caves | Discovered new exit (range 8) 18726 | -6/Lower Caves | Identified exit to Lower Caves 18729 | -6/Lower Caves | Entered another Lower Caves area 18729 | -6/Lower Caves | Accompanied by 2 allies 19032 | -6/Lower Caves | Learned Factory security intel 19392 | -6/Lower Caves | Discovered exit to Zion (range 12) 19395 | -6/Lower Caves | Encountered a Warlord checkpoint 19426 | -6/Lower Caves | Entered Zion 19426 | -6/Zion | Accompanied by 1 ally 19559 | -6/Zion | Discovered new exit (range 11) 19656 | -6/Zion | Learned Factory stockpile data 19994 | -6/Zion | Found GAL Module 20643 | -6/Zion | Gained Derelict followers 20998 | -6/Zion | Received a visual enhancement algorithm 21356 | -6/Zion | Imprinted 21358 | -6/Zion | Declared Zion's savior 21882 | -6/Zion | Entered Proximity Caves 21882 | -5/Proximity Caves | Accompanied by 6 allies 21891 | -5/Proximity Caves | Spotted B-75 Beast 21920 | -5/Proximity Caves | Allies destroyed B-75 Beast 21947 | -5/Proximity Caves | Learned Factory stockpile data 22041 | -5/Proximity Caves | Attracted the attention of an 0b10 outpost 23079 | -5/Proximity Caves | Discovered new exit (range 15) 23139 | -5/Proximity Caves | System corruption reached 10% 23149 | -5/Proximity Caves | Entered Factory 23149 | -5/Factory | Evolved 2 slots: Utility x1, Weapon x1 23150 | -5/Factory | Identified exit to Extension 23151 | -5/Factory | Identified exit to Upper Caves 23154 | -5/Factory | Loaded intel: 2 garrison access locations 24512 | -5/Factory | Entered Upper Caves 24781 | -5/Upper Caves | Attracted the attention of an 0b10 checkpoint 24841 | -5/Upper Caves | Identified exit to Upper Caves 25111 | -5/Upper Caves | Entered another Upper Caves area 25111 | -5/Upper Caves | Accompanied by 1 ally 25240 | -5/Upper Caves | Attracted the attention of an 0b10 outpost 25244 | -5/Upper Caves | Encountered a Warlord checkpoint 25720 | -5/Upper Caves | Learned location of 1 exit from Proximity Caves 25775 | -5/Upper Caves | Discovered new exit (range 13) 25797 | -5/Upper Caves | Entered Warlord 25797 | -5/Warlord | Accompanied by 3 allies 25864 | -5/Warlord | System corruption reached 10% 25872 | -5/Warlord | System corruption cleaned by Quarantine Array 26172 | -5/Warlord | Build established: Scavenger-Mutant 26291 | -5/Warlord | Rebuked by Warlord 26296 | -5/Warlord | Received a Watcher feed algorithm from an ecstatic Tinkerer 26316 | -5/Warlord | Warlord's base attacked by MAIN.C 26318 | -5/Warlord | Opened Warlord's prototype stash 26323 | -5/Warlord | Found Prototype Reactor 26330 | -5/Warlord | Found Prototype Processor 26332 | -5/Warlord | Found Prototype Device 26338 | -5/Warlord | Identified Thermal Barrier 26341 | -5/Warlord | Found Prototype Hackware 26487 | -5/Warlord | Found Prototype Energy Gun 26489 | -5/Warlord | Found Prototype Energy Gun 26495 | -5/Warlord | Found Prototype Energy Gun 26498 | -5/Warlord | Found Prototype Energy Gun 26627 | -5/Warlord | Identified Exp. Core Analyzer 26666 | -5/Warlord | Warlord forces counterattacked 26684 | -5/Warlord | Spotted Striker 26725 | -5/Warlord | Spotted Striker 26746 | -5/Warlord | Spotted Executioner 26765 | -5/Warlord | Found Exp. Core Analyzer 26806 | -5/Warlord | Discovered new exit (range 14) 26816 | -5/Warlord | Spotted Striker 26824 | -5/Warlord | Released all parts (4) 26826 | -5/Warlord | Entered Proximity Caves 26827 | -4/Proximity Caves | Identified exit to Factory 26855 | -4/Proximity Caves | Lost 10 parts (3n5u2w) 26859 | -4/Proximity Caves | Identified Vortex Shotgun 26953 | -4/Proximity Caves | Core integrity fell below 50% 26973 | -4/Proximity Caves | Attracted the attention of an 0b10 checkpoint 26977 | -4/Proximity Caves | Core integrity fell below 20% 27017 | -4/Proximity Caves | Destroyed by P-70 Sage with Tesla Rifle Last Messages --------------- Loading 1 Proximity Caves exit... 26827_ A1-S3J(k) breaks down the debris. 26859_ Identified Vortex Shotgun. 26860_ Destroyed Com. Battery. 26862_ |&N44EUCYGQYXJQE5NO,6QZ%POMQKYRW 26862_ Destroyed Com. Battery. 26864_ X4-LMH(S) destroyed. 26877_ System corrupted: Energy discharge (-22). 26926_ Searching scrap... 26926_ Found Force Field. 26926_ Found 20 Matter. 26927_ Acquired 10 matter. 26939_ Destroyed Tesla Rifle. 26939_ P-70 Sage destroyed. 26949_ Vortex Shotgun destroyed. 26950_ Slammed into P-70 Sage. 26961_ P-70 Sage knocked back. 26962_ Slammed into P-70 Sage. 26972_ Penetrated by Slug. 26973_ Y-64 Sentinel: "INTERCEPTING UNREGISTERED DERELICT." Map ----- +----------------------------------------------------+ | ?????????????????????????????????????????????????? | | ?????????????????????????????????????????????????? | | ?????????????????????????????????????????????????? | | ????"????????##??????????????????????????????????? | | ??? "??????? ??????????????????????????????????? | | ???? ?????? #??????????????????????????????????? | | ???? ""#####? #??????????????????????????????????? | | ??? ## #??????????????????????????????????? | | ?? ## #??????#???????????????????????????? | | # ## #????? #???????????????????????????? | | " "" ## #??## #???????????????????????????? | | """ ## #?# #???????????????????????????? | | ? " # ## #???????????????????????????? | | ??# " #???????????????????????????? | | ??# """" ##???????????????????????????? | | ??# " #######????????????????????????????? | | ??# ##??????????????????????????????????? | | ??##### #???????????????????????????????????? | | ??????## ##???????????????????????????????????? | | ???????# ###????????????????????????????????????? | | ??????## #####??????????????????????????????????? | | #???### #######????????????????????????????? | | ##### ########?????????????????????? | | ## ##????????????????????? | | p ##???????????????????? | | ######## @ #???????????????????? | | ##??????##### ## #???????????????????? | | #####???????????# #####???????????????????? | | ### #??????????????# #???????????????????????? | | #?## #????????????? ???????????????????????? | | ???####????????????### ??????????????????????? | | ?????????????????????# ?????????????????